[Event "Late-Titled-Tuesday-Blitz-February-27-2024"]
[Site "Chess.com"]
[Date "2024.02.27"]
[Round "4"]
[White "boguszp"]
[Black "vladoboch"]
[Result "0-1"]
[WhiteElo "2014"]
[BlackElo "2435"]
[TimeControl "180+1"]
[EndTime "14:39:16 PST"]
[Termination "vladoboch won on time"]

1. d4 {[%clk 0:02:57.5]} 1... a6 {[%clk 0:03:00.1]} 2. Nf3 {[%clk 0:02:56.5]}
2... b5 {[%clk 0:03:00.4]} 3. e4 {[%clk 0:02:56]} 3... Bb7 {[%clk 0:03:00.8]} 4.
Bd3 {[%clk 0:02:55.5]} 4... e6 {[%clk 0:03:00.7]} 5. O-O {[%clk 0:02:55.4]} 5...
Nf6 {[%clk 0:03:01.2]} 6. Re1 {[%clk 0:02:53.7]} 6... Be7 {[%clk 0:03:01.1]} 7.
c4 {[%clk 0:02:49.8]} 7... bxc4 {[%clk 0:03:00.7]} 8. Bxc4 {[%clk 0:02:48.6]}
8... Nxe4 {[%clk 0:02:58.2]} 9. Nc3 {[%clk 0:02:40.7]} 9... Nxc3 {[%clk
0:02:57.4]} 10. bxc3 {[%clk 0:02:40.1]} 10... O-O {[%clk 0:02:58.1]} 11. Bd3
{[%clk 0:02:30.7]} 11... d6 {[%clk 0:02:55.1]} 12. Qe2 {[%clk 0:02:29.3]} 12...
Nd7 {[%clk 0:02:54.8]} 13. Bf4 {[%clk 0:02:22.9]} 13... Nf6 {[%clk 0:02:53.5]}
14. Ng5 {[%clk 0:02:18.4]} 14... Qd7 {[%clk 0:02:41.5]} 15. Bf5 {[%clk 0:02:04]}
15... exf5 {[%clk 0:02:31.9]} 16. Qxe7 {[%clk 0:02:02.9]} 16... Qc6 {[%clk
0:02:30.6]} 17. f3 {[%clk 0:01:21.7]} 17... Rae8 {[%clk 0:02:30.1]} 18. Qxe8
{[%clk 0:01:02]} 18... Rxe8 {[%clk 0:01:18.9]} 19. Rxe8+ {[%clk 0:00:59.4]}
19... Qxe8 {[%clk 0:01:18.9]} 20. Kf2 {[%clk 0:00:56.6]} 20... h6 {[%clk
0:01:18.7]} 21. Nh3 {[%clk 0:00:50.5]} 21... Ng4+ {[%clk 0:01:16.1]} 22. fxg4
{[%clk 0:00:45.6]} 22... fxg4 {[%clk 0:01:16.6]} 23. Ng1 {[%clk 0:00:45.4]}
23... Qe4 {[%clk 0:01:17.4]} 24. Be3 {[%clk 0:00:29.8]} 24... Qxg2+ {[%clk
0:01:16.4]} 25. Ke1 {[%clk 0:00:30.2]} 25... Qb2 {[%clk 0:01:01.9]} 26. Rc1
{[%clk 0:00:23.9]} 26... Qxh2 {[%clk 0:00:57.8]} 27. Ne2 {[%clk 0:00:23]} 27...
Bf3 {[%clk 0:00:56.9]} 28. Nf4 {[%clk 0:00:19]} 28... g5 {[%clk 0:00:55.2]} 29.
Nd3 {[%clk 0:00:16.7]} 29... g3 {[%clk 0:00:53.6]} 0-1

[Event "Late-Titled-Tuesday-Blitz-February-27-2024"]
[Site "Chess.com"]
[Date "2024.02.27"]
[Round "4"]
[White "IMRosen"]
[Black "OPQRC"]
[Result "1-0"]
[WhiteElo "2701"]
[BlackElo "2525"]
[TimeControl "180+1"]
[EndTime "14:39:17 PST"]
[Termination "IMRosen won by resignation"]

1. e4 {[%clk 0:03:00.9]} 1... c5 {[%clk 0:02:55.5]} 2. Nc3 {[%clk 0:03:01.1]}
2... Nc6 {[%clk 0:02:53.3]} 3. Bb5 {[%clk 0:03:01.3]} 3... e6 {[%clk 0:02:51.3]}
4. Bxc6 {[%clk 0:03:01.1]} 4... bxc6 {[%clk 0:02:50.5]} 5. f4 {[%clk 0:03:01.7]}
5... g6 {[%clk 0:02:45.4]} 6. d3 {[%clk 0:03:02.1]} 6... d6 {[%clk 0:02:44.7]}
7. Nf3 {[%clk 0:03:02.7]} 7... Bg7 {[%clk 0:02:44.7]} 8. O-O {[%clk 0:03:03.3]}
8... Ne7 {[%clk 0:02:45.3]} 9. Rb1 {[%clk 0:03:02.7]} 9... O-O {[%clk
0:02:44.8]} 10. Bd2 {[%clk 0:03:03.2]} 10... Rb8 {[%clk 0:02:43.8]} 11. b3
{[%clk 0:03:03.4]} 11... f5 {[%clk 0:02:25.1]} 12. Qe1 {[%clk 0:03:00.9]} 12...
fxe4 {[%clk 0:02:05.9]} 13. dxe4 {[%clk 0:02:57.6]} 13... d5 {[%clk 0:02:02.4]}
14. e5 {[%clk 0:02:50.3]} 14... Nf5 {[%clk 0:01:56.1]} 15. Kh1 {[%clk
0:02:38.2]} 15... c4 {[%clk 0:01:47.3]} 16. Na4 {[%clk 0:02:38.2]} 16... cxb3
{[%clk 0:01:45.1]} 17. axb3 {[%clk 0:02:38.4]} 17... Ba6 {[%clk 0:01:43.2]} 18.
Rf2 {[%clk 0:02:35.9]} 18... Qe7 {[%clk 0:01:38.6]} 19. Ra1 {[%clk 0:02:23.3]}
19... Bb7 {[%clk 0:01:21.2]} 20. Bb4 {[%clk 0:02:20.1]} 20... Qc7 {[%clk
0:01:18.3]} 21. Bxf8 {[%clk 0:02:13.6]} 21... Bxf8 {[%clk 0:01:19.2]} 22. g4
{[%clk 0:02:09.9]} 22... Nh6 {[%clk 0:01:17.9]} 23. h3 {[%clk 0:02:10.2]} 23...
c5 {[%clk 0:01:17.8]} 24. Kh2 {[%clk 0:02:06.7]} 24... d4 {[%clk 0:01:18]} 25.
Ng5 {[%clk 0:02:06]} 25... Bd5 {[%clk 0:01:14.8]} 26. Nb2 {[%clk 0:02:00.8]}
26... Be7 {[%clk 0:01:13]} 27. Ne4 {[%clk 0:01:53.9]} 27... Rf8 {[%clk
0:01:10.8]} 28. g5 {[%clk 0:01:40.5]} 28... Nf5 {[%clk 0:00:53.8]} 29. Nf6+
{[%clk 0:01:40.7]} 29... Bxf6 {[%clk 0:00:51.8]} 30. gxf6 {[%clk 0:01:41.3]}
30... Kf7 {[%clk 0:00:49.3]} 31. Nc4 {[%clk 0:01:40.1]} 31... Rg8 {[%clk
0:00:46.9]} 32. Qa5 {[%clk 0:01:34.9]} 32... Qxa5 {[%clk 0:00:44.9]} 33. Rxa5
{[%clk 0:01:35.8]} 33... Ra8 {[%clk 0:00:40]} 34. Rxc5 {[%clk 0:01:34.1]} 34...
Bxc4 {[%clk 0:00:38.9]} 35. Rxc4 {[%clk 0:01:33.6]} 35... h6 {[%clk 0:00:35.2]}
36. Rc7+ {[%clk 0:01:33.3]} 36... Kf8 {[%clk 0:00:34.8]} 37. Rg2 {[%clk
0:01:30.7]} 37... Nh4 {[%clk 0:00:31.8]} 38. Rg4 {[%clk 0:01:31.3]} 38... g5
{[%clk 0:00:32.2]} 39. fxg5 {[%clk 0:01:30.4]} 39... hxg5 {[%clk 0:00:33.1]} 40.
Kh1 {[%clk 0:01:14.8]} 40... Nf3 {[%clk 0:00:25]} 41. Kg2 {[%clk 0:01:01.5]}
41... Nxe5 {[%clk 0:00:22.7]} 42. Rxg5 {[%clk 0:01:01]} 42... Rd8 {[%clk
0:00:22.8]} 43. Rxe5 {[%clk 0:00:59.8]} 1-0

[Event "Late-Titled-Tuesday-Blitz-February-27-2024"]
[Site "Chess.com"]
[Date "2024.02.27"]
[Round "4"]
[White "Pingah9"]
[Black "Mr_Heisenberg13"]
[Result "1-0"]
[WhiteElo "2574"]
[BlackElo "2824"]
[TimeControl "180+1"]
[EndTime "14:39:20 PST"]
[Termination "Pingah9 won by checkmate"]

1. e4 {[%clk 0:03:00.9]} 1... c5 {[%clk 0:02:59.3]} 2. Nc3 {[%clk 0:03:01.4]}
2... e6 {[%clk 0:02:59.6]} 3. g3 {[%clk 0:03:01.7]} 3... d5 {[%clk 0:02:58.5]}
4. Bg2 {[%clk 0:03:02.2]} 4... Nf6 {[%clk 0:02:57.5]} 5. d3 {[%clk 0:02:57.8]}
5... Nc6 {[%clk 0:02:56.5]} 6. f4 {[%clk 0:02:53.3]} 6... Be7 {[%clk 0:02:55.4]}
7. Nh3 {[%clk 0:02:48.1]} 7... O-O {[%clk 0:02:55.2]} 8. O-O {[%clk 0:02:47.8]}
8... Rb8 {[%clk 0:02:54.5]} 9. a4 {[%clk 0:02:47]} 9... a6 {[%clk 0:02:54.1]}
10. e5 {[%clk 0:02:37.9]} 10... Nd7 {[%clk 0:02:53.5]} 11. Ne2 {[%clk
0:02:36.3]} 11... b5 {[%clk 0:02:49.4]} 12. axb5 {[%clk 0:02:37.2]} 12... axb5
{[%clk 0:02:50.1]} 13. Be3 {[%clk 0:02:32.5]} 13... f6 {[%clk 0:02:49]} 14. d4
{[%clk 0:02:21.9]} 14... cxd4 {[%clk 0:02:46]} 15. Nxd4 {[%clk 0:02:22.8]} 15...
Nxd4 {[%clk 0:02:45.8]} 16. Bxd4 {[%clk 0:02:23.7]} 16... fxe5 {[%clk 0:02:45]}
17. fxe5 {[%clk 0:02:24.1]} 17... Rxf1+ {[%clk 0:02:43.5]} 18. Qxf1 {[%clk
0:02:24.1]} 18... Qc7 {[%clk 0:02:42.9]} 19. Qe2 {[%clk 0:02:19.1]} 19... Bc5
{[%clk 0:02:39.7]} 20. Bxc5 {[%clk 0:02:06.4]} 20... Qxc5+ {[%clk 0:02:40.6]}
21. Kh1 {[%clk 0:02:06.8]} 21... Qd4 {[%clk 0:02:39.3]} 22. Re1 {[%clk
0:01:50.4]} 22... Qxb2 {[%clk 0:02:34.9]} 23. Nf4 {[%clk 0:01:50.8]} 23... Nf8
{[%clk 0:02:32.3]} 24. h4 {[%clk 0:01:34.6]} 24... b4 {[%clk 0:02:30.1]} 25. Qd3
{[%clk 0:01:25.7]} 25... b3 {[%clk 0:02:28.5]} 26. c4 {[%clk 0:01:21.6]} 26...
Qc2 {[%clk 0:02:14.5]} 27. cxd5 {[%clk 0:01:14.2]} 27... Qxd3 {[%clk 0:02:04]}
28. Nxd3 {[%clk 0:01:15.1]} 28... exd5 {[%clk 0:02:04.2]} 29. Bxd5+ {[%clk
0:01:15.4]} 29... Be6 {[%clk 0:02:04.7]} 30. Bxe6+ {[%clk 0:01:06.3]} 30... Nxe6
{[%clk 0:02:05.6]} 31. Rb1 {[%clk 0:01:06.1]} 31... h5 {[%clk 0:01:58.3]} 32.
Kg2 {[%clk 0:01:06]} 32... Kh7 {[%clk 0:01:48.8]} 33. Kf2 {[%clk 0:01:03.7]}
33... Kg6 {[%clk 0:01:48.4]} 34. Ke3 {[%clk 0:01:03.2]} 34... Kf5 {[%clk
0:01:47.5]} 35. Rb2 {[%clk 0:00:46]} 35... Kg4 {[%clk 0:01:43.5]} 36. Kf2 {[%clk
0:00:46.4]} 36... Rf8+ {[%clk 0:01:37.4]} 37. Kg2 {[%clk 0:00:46.8]} 37... Nd4
{[%clk 0:01:27.4]} 38. e6 {[%clk 0:00:35.9]} 38... Re8 {[%clk 0:01:02.8]} 39.
Rf2 {[%clk 0:00:34.8]} 39... g5 {[%clk 0:00:40.4]} 40. Ne5# {[%clk 0:00:34.1]}
1-0

[Event "Late-Titled-Tuesday-Blitz-February-27-2024"]
[Site "Chess.com"]
[Date "2024.02.27"]
[Round "4"]
[White "platy3"]
[Black "Mikayel99"]
[Result "1-0"]
[WhiteElo "2939"]
[BlackElo "2552"]
[TimeControl "180+1"]
[EndTime "14:39:22 PST"]
[Termination "platy3 won by checkmate"]

1. e4 {[%clk 0:03:00.9]} 1... c6 {[%clk 0:02:56.8]} 2. d4 {[%clk 0:03:00]} 2...
d5 {[%clk 0:02:57.1]} 3. e5 {[%clk 0:03:00.9]} 3... Bf5 {[%clk 0:02:55.8]} 4.
Nd2 {[%clk 0:03:00.5]} 4... e6 {[%clk 0:02:53.6]} 5. Nb3 {[%clk 0:03:00.8]} 5...
Nd7 {[%clk 0:02:53]} 6. Nf3 {[%clk 0:03:00.9]} 6... c5 {[%clk 0:02:48.7]} 7. c3
{[%clk 0:03:00.1]} 7... Ne7 {[%clk 0:02:44.5]} 8. Be2 {[%clk 0:02:59.2]} 8... h6
{[%clk 0:02:44.1]} 9. O-O {[%clk 0:02:59.3]} 9... Nc6 {[%clk 0:02:44.6]} 10. Be3
{[%clk 0:02:59.1]} 10... Be7 {[%clk 0:02:43.4]} 11. Ne1 {[%clk 0:02:54.5]} 11...
O-O {[%clk 0:02:40.5]} 12. f4 {[%clk 0:02:54.3]} 12... Rc8 {[%clk 0:02:32.3]}
13. dxc5 {[%clk 0:02:49.9]} 13... Na5 {[%clk 0:02:23.5]} 14. Nxa5 {[%clk
0:02:47.7]} 14... Qxa5 {[%clk 0:02:24.4]} 15. b4 {[%clk 0:02:48.2]} 15... Qd8
{[%clk 0:02:10.6]} 16. Nf3 {[%clk 0:02:47.1]} 16... b6 {[%clk 0:02:05.5]} 17.
Nd4 {[%clk 0:02:45.9]} 17... bxc5 {[%clk 0:02:05.1]} 18. Nxf5 {[%clk 0:02:44.8]}
18... exf5 {[%clk 0:02:06]} 19. Qxd5 {[%clk 0:02:40.4]} 19... Nb6 {[%clk
0:01:54.4]} 20. Qb3 {[%clk 0:02:30.9]} 20... Qd5 {[%clk 0:01:36.4]} 21. c4
{[%clk 0:02:30.2]} 21... Qe4 {[%clk 0:01:27.7]} 22. b5 {[%clk 0:02:30.1]} 22...
Rfd8 {[%clk 0:01:08.1]} 23. a4 {[%clk 0:02:26.5]} 23... f6 {[%clk 0:00:45.3]}
24. a5 {[%clk 0:02:22.8]} 24... Na8 {[%clk 0:00:41.8]} 25. Bf3 {[%clk
0:02:20.3]} 25... Qd3 {[%clk 0:00:42]} 26. Qxd3 {[%clk 0:02:16.2]} 26... Rxd3
{[%clk 0:00:42.9]} 27. Bd5+ {[%clk 0:02:08.6]} 27... Kf8 {[%clk 0:00:42]} 28.
Bf2 {[%clk 0:02:03.6]} 28... fxe5 {[%clk 0:00:40]} 29. fxe5 {[%clk 0:02:03.9]}
29... Nc7 {[%clk 0:00:40.1]} 30. Bb7 {[%clk 0:01:55.6]} 30... Rcd8 {[%clk
0:00:28.2]} 31. b6 {[%clk 0:01:55.5]} 31... axb6 {[%clk 0:00:26.2]} 32. axb6
{[%clk 0:01:56.4]} 32... Ne6 {[%clk 0:00:22.2]} 33. Bd5 {[%clk 0:01:52]} 33...
Nf4 {[%clk 0:00:20]} 34. b7 {[%clk 0:01:52.5]} 34... Nxd5 {[%clk 0:00:18.8]} 35.
cxd5 {[%clk 0:01:53.4]} 35... Rb3 {[%clk 0:00:18.7]} 36. d6 {[%clk 0:01:44.2]}
36... Rxb7 {[%clk 0:00:18.2]} 37. dxe7+ {[%clk 0:01:42.5]} 37... Kxe7 {[%clk
0:00:19.1]} 38. Bxc5+ {[%clk 0:01:42]} 38... Ke6 {[%clk 0:00:19.8]} 39. Ra6+
{[%clk 0:01:36.3]} 39... Kxe5 {[%clk 0:00:17.4]} 40. Re1+ {[%clk 0:01:36.3]}
40... Kf4 {[%clk 0:00:15.6]} 41. Be3+ {[%clk 0:01:33.9]} 41... Kg4 {[%clk
0:00:14.1]} 42. Rf1 {[%clk 0:01:29.8]} 42... g5 {[%clk 0:00:07.9]} 43. h3+
{[%clk 0:01:21.3]} 43... Kh5 {[%clk 0:00:06.3]} 44. Rxf5 {[%clk 0:01:21.2]}
44... Re8 {[%clk 0:00:05.5]} 45. g4+ {[%clk 0:01:17.2]} 45... Kh4 {[%clk
0:00:05.4]} 46. Rxh6+ {[%clk 0:01:18.1]} 46... Kg3 {[%clk 0:00:05.4]} 47. Bf2#
{[%clk 0:01:19]} 1-0

[Event "Late-Titled-Tuesday-Blitz-February-27-2024"]
[Site "Chess.com"]
[Date "2024.02.27"]
[Round "4"]
[White "VitorBronson"]
[Black "rhwr"]
[Result "1-0"]
[WhiteElo "2504"]
[BlackElo "2325"]
[TimeControl "180+1"]
[EndTime "14:39:23 PST"]
[Termination "VitorBronson won by resignation"]

1. d4 {[%clk 0:03:00.9]} 1... Nf6 {[%clk 0:02:58.1]} 2. c4 {[%clk 0:03:00.6]}
2... g6 {[%clk 0:02:58]} 3. Nc3 {[%clk 0:03:00.3]} 3... d5 {[%clk 0:02:57.3]} 4.
Nf3 {[%clk 0:02:59.9]} 4... Bg7 {[%clk 0:02:56.9]} 5. Qb3 {[%clk 0:02:59.7]}
5... dxc4 {[%clk 0:02:53]} 6. Qxc4 {[%clk 0:02:59.6]} 6... O-O {[%clk
0:02:53.1]} 7. e4 {[%clk 0:02:59.7]} 7... b6 {[%clk 0:02:47.2]} 8. Qb3 {[%clk
0:02:49.8]} 8... Bb7 {[%clk 0:02:46.9]} 9. e5 {[%clk 0:02:49.8]} 9... Nd5 {[%clk
0:02:46.5]} 10. Bc4 {[%clk 0:02:30.1]} 10... Nxc3 {[%clk 0:02:36.1]} 11. Qxc3
{[%clk 0:02:31]} 11... Nc6 {[%clk 0:02:23.4]} 12. O-O {[%clk 0:02:28.2]} 12...
Na5 {[%clk 0:02:19.4]} 13. Be2 {[%clk 0:02:26.6]} 13... Rc8 {[%clk 0:02:15.6]}
14. Be3 {[%clk 0:02:23]} 14... Bd5 {[%clk 0:02:02.3]} 15. b4 {[%clk 0:02:20.6]}
15... Nb7 {[%clk 0:02:00.8]} 16. a3 {[%clk 0:02:15.7]} 16... a5 {[%clk
0:01:47.1]} 17. Ne1 {[%clk 0:01:52.6]} 17... c6 {[%clk 0:01:28]} 18. Nd3 {[%clk
0:01:49.5]} 18... Qc7 {[%clk 0:01:24.9]} 19. Nf4 {[%clk 0:01:48]} 19... Nd8
{[%clk 0:01:18.1]} 20. Rfc1 {[%clk 0:01:44.8]} 20... Ne6 {[%clk 0:01:16.1]} 21.
Nxd5 {[%clk 0:01:23.4]} 21... cxd5 {[%clk 0:01:15.8]} 22. Qd2 {[%clk 0:01:21.3]}
22... Qa7 {[%clk 0:01:13.4]} 23. Bg4 {[%clk 0:01:19.3]} 23... Rc7 {[%clk
0:01:04.3]} 24. Rxc7 {[%clk 0:01:08.9]} 24... Qxc7 {[%clk 0:01:03.9]} 25. Rc1
{[%clk 0:01:08.6]} 25... Qa7 {[%clk 0:01:03.3]} 26. b5 {[%clk 0:01:07.3]} 26...
Qd7 {[%clk 0:01:00.7]} 27. Rc6 {[%clk 0:01:05.9]} 27... h5 {[%clk 0:01:00.1]}
28. Bh3 {[%clk 0:01:05.9]} 28... Rb8 {[%clk 0:00:55.9]} 29. g3 {[%clk
0:01:04.7]} 29... Kh7 {[%clk 0:00:53.6]} 30. Qc1 {[%clk 0:00:59.1]} 30... Rb7
{[%clk 0:00:47.8]} 31. a4 {[%clk 0:00:56.7]} 31... Bf8 {[%clk 0:00:41.8]} 32.
Rc8 {[%clk 0:00:56.6]} 32... Bg7 {[%clk 0:00:41.3]} 33. Qc6 {[%clk 0:00:56.2]}
33... Rc7 {[%clk 0:00:37.3]} 34. Rxc7 {[%clk 0:00:45.4]} 34... Qxc7 {[%clk
0:00:36.3]} 35. Bxe6 {[%clk 0:00:42.9]} 1-0

[Event "Late-Titled-Tuesday-Blitz-February-27-2024"]
[Site "Chess.com"]
[Date "2024.02.27"]
[Round "4"]
[White "Vse_po_kaify"]
[Black "IM_Tissir"]
[Result "0-1"]
[WhiteElo "2245"]
[BlackElo "2494"]
[TimeControl "180+1"]
[EndTime "14:39:29 PST"]
[Termination "IM_Tissir won by resignation"]

1. e4 {[%clk 0:02:59.7]} 1... c5 {[%clk 0:02:56.2]} 2. Nf3 {[%clk 0:02:53.5]}
2... d6 {[%clk 0:02:50]} 3. d4 {[%clk 0:02:35.1]} 3... cxd4 {[%clk 0:02:49.1]}
4. Nxd4 {[%clk 0:02:36]} 4... Nf6 {[%clk 0:02:33]} 5. Nc3 {[%clk 0:02:36.2]}
5... a6 {[%clk 0:02:32.4]} 6. h3 {[%clk 0:02:35.2]} 6... h5 {[%clk 0:02:28.8]}
7. Bg5 {[%clk 0:02:22.7]} 7... Nbd7 {[%clk 0:02:27.4]} 8. Bc4 {[%clk 0:01:55.6]}
8... e6 {[%clk 0:02:20.8]} 9. Qe2 {[%clk 0:01:40.4]} 9... b5 {[%clk 0:02:12.9]}
10. Bb3 {[%clk 0:01:32.3]} 10... Qb6 {[%clk 0:02:12.7]} 11. O-O-O {[%clk
0:01:30.2]} 11... Nc5 {[%clk 0:02:10.6]} 12. f4 {[%clk 0:01:26.5]} 12... Bb7
{[%clk 0:01:58.3]} 13. e5 {[%clk 0:01:07.1]} 13... dxe5 {[%clk 0:01:50.8]} 14.
fxe5 {[%clk 0:01:08]} 14... Nfe4 {[%clk 0:01:50.9]} 15. Nxe4 {[%clk 0:00:59.5]}
15... Nxe4 {[%clk 0:01:41.7]} 16. Be3 {[%clk 0:00:59.6]} 16... Bc5 {[%clk
0:01:41.3]} 17. Rhe1 {[%clk 0:00:48.2]} 17... O-O-O {[%clk 0:01:38.4]} 18. c3
{[%clk 0:00:29.3]} 18... Rd7 {[%clk 0:01:36.4]} 19. Bg1 {[%clk 0:00:24]} 19...
g6 {[%clk 0:01:29]} 20. a3 {[%clk 0:00:23.8]} 20... Rhd8 {[%clk 0:01:28]} 21.
Bc2 {[%clk 0:00:20.3]} 21... Ng3 {[%clk 0:01:10.8]} 22. Qf2 {[%clk 0:00:05.4]}
22... h4 {[%clk 0:01:10.2]} 23. Qf4 {[%clk 0:00:03.9]} 23... Nf5 {[%clk
0:00:57.7]} 24. Nxf5 {[%clk 0:00:01.5]} 24... gxf5 {[%clk 0:00:58.6]} 25. Rxd7
{[%clk 0:00:01.2]} 25... Rxd7 {[%clk 0:00:58.9]} 26. Bxc5 {[%clk 0:00:01.4]}
26... Qxc5 {[%clk 0:00:59.8]} 27. Qxh4 {[%clk 0:00:01.6]} 27... Bxg2 {[%clk
0:00:57]} 28. Qf4 {[%clk 0:00:02]} 28... Bxh3 {[%clk 0:00:55.3]} 29. Rh1 {[%clk
0:00:02.3]} 29... Bg4 {[%clk 0:00:52]} 30. Rh8+ {[%clk 0:00:03.2]} 30... Kc7
{[%clk 0:00:51.9]} 31. Rh7 {[%clk 0:00:03.1]} 31... Qg1+ {[%clk 0:00:50.2]} 0-1

[Event "Late-Titled-Tuesday-Blitz-February-27-2024"]
[Site "Chess.com"]
[Date "2024.02.27"]
[Round "4"]
[White "rasmussvane"]
[Black "gahryman"]
[Result "1-0"]
[WhiteElo "2940"]
[BlackElo "2695"]
[TimeControl "180+1"]
[EndTime "14:39:30 PST"]
[Termination "rasmussvane won on time"]

1. Nf3 {[%clk 0:02:56.8]} 1... Nf6 {[%clk 0:02:59.1]} 2. g3 {[%clk 0:02:55.8]}
2... d5 {[%clk 0:02:59.6]} 3. Bg2 {[%clk 0:02:56.2]} 3... c6 {[%clk 0:02:59.7]}
4. O-O {[%clk 0:02:54.3]} 4... Bg4 {[%clk 0:03:00.3]} 5. h3 {[%clk 0:02:54.3]}
5... Bxf3 {[%clk 0:02:56.4]} 6. Bxf3 {[%clk 0:02:54.5]} 6... e5 {[%clk
0:02:56.6]} 7. d3 {[%clk 0:02:54.9]} 7... Bc5 {[%clk 0:02:56.2]} 8. e4 {[%clk
0:02:54]} 8... dxe4 {[%clk 0:02:55.4]} 9. dxe4 {[%clk 0:02:54.9]} 9... Qe7
{[%clk 0:02:55.7]} 10. Nd2 {[%clk 0:02:54]} 10... Nbd7 {[%clk 0:02:55.5]} 11.
Nb3 {[%clk 0:02:52.3]} 11... Bb6 {[%clk 0:02:54]} 12. Kg2 {[%clk 0:02:49.6]}
12... Nf8 {[%clk 0:02:44.1]} 13. a4 {[%clk 0:02:47.3]} 13... a5 {[%clk
0:02:40.3]} 14. Qe2 {[%clk 0:02:38.4]} 14... h5 {[%clk 0:02:37.5]} 15. h4 {[%clk
0:02:34.9]} 15... Ne6 {[%clk 0:02:37.1]} 16. Rd1 {[%clk 0:02:31.9]} 16... g6
{[%clk 0:02:24.7]} 17. c3 {[%clk 0:02:26]} 17... O-O {[%clk 0:02:22.7]} 18. Nd2
{[%clk 0:02:21.6]} 18... Rfd8 {[%clk 0:02:16.8]} 19. Nc4 {[%clk 0:02:21]} 19...
Rxd1 {[%clk 0:02:14.5]} 20. Qxd1 {[%clk 0:02:21.9]} 20... Bc7 {[%clk 0:02:14.8]}
21. Be3 {[%clk 0:02:16.7]} 21... Rd8 {[%clk 0:01:53.9]} 22. Qb3 {[%clk
0:02:16.4]} 22... Nc5 {[%clk 0:01:06.2]} 23. Bxc5 {[%clk 0:01:58]} 23... Qxc5
{[%clk 0:01:05.6]} 24. Qxb7 {[%clk 0:01:58.3]} 24... Bb8 {[%clk 0:01:03]} 25.
Qb6 {[%clk 0:01:43.8]} 25... Qxb6 {[%clk 0:00:21.2]} 26. Nxb6 {[%clk 0:01:44.1]}
26... Ng4 {[%clk 0:00:21.4]} 27. Nc4 {[%clk 0:01:35.6]} 27... Ba7 {[%clk
0:00:21.3]} 28. Bxg4 {[%clk 0:01:32.2]} 28... hxg4 {[%clk 0:00:21]} 29. Kf1
{[%clk 0:01:31.2]} 29... f6 {[%clk 0:00:16.3]} 30. Ke2 {[%clk 0:01:30.8]} 30...
Rb8 {[%clk 0:00:11.8]} 31. Rd1 {[%clk 0:01:24.7]} 31... Bc5 {[%clk 0:00:11.6]}
32. Rd7 {[%clk 0:01:21.9]} 32... f5 {[%clk 0:00:10.9]} 33. Rc7 {[%clk
0:01:19.6]} 33... f4 {[%clk 0:00:10.5]} 34. Rxc6 {[%clk 0:01:15.3]} 34... f3+
{[%clk 0:00:11]} 35. Ke1 {[%clk 0:01:15.4]} 35... Ba3 {[%clk 0:00:07.7]} 36.
bxa3 {[%clk 0:01:05.2]} 36... Rb1+ {[%clk 0:00:07.4]} 37. Kd2 {[%clk 0:01:05.2]}
37... Rf1 {[%clk 0:00:07.4]} 38. Rxg6+ {[%clk 0:01:04.8]} 38... Kh7 {[%clk
0:00:06.9]} 39. Rxg4 {[%clk 0:01:04.6]} 39... Rxf2+ {[%clk 0:00:07.2]} 40. Ke3
{[%clk 0:01:04.8]} 1-0

[Event "Late-Titled-Tuesday-Blitz-February-27-2024"]
[Site "Chess.com"]
[Date "2024.02.27"]
[Round "4"]
[White "GothamChess"]
[Black "michaelk123"]
[Result "1-0"]
[WhiteElo "2681"]
[BlackElo "2491"]
[TimeControl "180+1"]
[EndTime "14:39:31 PST"]
[Termination "GothamChess won by resignation"]

1. e4 {[%clk 0:02:54.8]} 1... c5 {[%clk 0:02:56.9]} 2. a3 {[%clk 0:02:52.5]}
2... Nc6 {[%clk 0:02:51]} 3. b4 {[%clk 0:02:52.4]} 3... cxb4 {[%clk 0:02:49.2]}
4. axb4 {[%clk 0:02:53.3]} 4... Nxb4 {[%clk 0:02:49]} 5. c3 {[%clk 0:02:54.1]}
5... Nc6 {[%clk 0:02:48.3]} 6. d4 {[%clk 0:02:55]} 6... d5 {[%clk 0:02:46.8]} 7.
exd5 {[%clk 0:02:55.9]} 7... Qxd5 {[%clk 0:02:46.1]} 8. Na3 {[%clk 0:02:56.8]}
8... e5 {[%clk 0:01:43.8]} 9. Nb5 {[%clk 0:02:50]} 9... Qd8 {[%clk 0:01:42.3]}
10. d5 {[%clk 0:02:47.8]} 10... Na5 {[%clk 0:01:28.2]} 11. d6 {[%clk 0:02:43.2]}
11... Be6 {[%clk 0:01:04.7]} 12. Nc7+ {[%clk 0:02:42.2]} 12... Kd7 {[%clk
0:01:04.8]} 13. Bb5+ {[%clk 0:01:46.3]} 13... Nc6 {[%clk 0:01:03.8]} 14. Nxa8
{[%clk 0:01:38.9]} 14... Qxa8 {[%clk 0:01:03.3]} 15. Nf3 {[%clk 0:01:39.2]}
15... f6 {[%clk 0:01:02.5]} 16. O-O {[%clk 0:01:26.8]} 16... Bxd6 {[%clk
0:00:55.8]} 17. Ba3 {[%clk 0:01:20.8]} 17... Qb8 {[%clk 0:00:55.9]} 18. Bxc6+
{[%clk 0:01:13.6]} 18... Kxc6 {[%clk 0:00:53.5]} 19. Qa4+ {[%clk 0:01:06.3]}
19... b5 {[%clk 0:00:53.6]} 20. Bxd6 {[%clk 0:01:01.4]} 20... Kxd6 {[%clk
0:00:43.6]} 21. Qb4+ {[%clk 0:00:51.5]} 21... Kd7 {[%clk 0:00:34.5]} 22. Rfd1+
{[%clk 0:00:51.6]} 22... Ke8 {[%clk 0:00:34.5]} 23. Qc5 {[%clk 0:00:37.6]} 23...
Ne7 {[%clk 0:00:33.5]} 24. Rxa7 {[%clk 0:00:34.4]} 24... Nd5 {[%clk 0:00:22.6]}
25. Qc6+ {[%clk 0:00:29.7]} 25... Kf8 {[%clk 0:00:20.7]} 26. Ra8 {[%clk
0:00:28]} 26... Kf7 {[%clk 0:00:16.4]} 27. Rxb8 {[%clk 0:00:26.2]} 27... Rxb8
{[%clk 0:00:17.2]} 28. Rxd5 {[%clk 0:00:26]} 1-0